bitfinex/quotes_SOLUSD_20230111
["timestamp","ask_amount","ask_price","bid_price","bid_amount"]
[1673446314619,20.0,15.737,15.725,47.7]
[1673446315252,20.0,15.737,15.723,114.2233]
[1673446315253,20.0,15.737,15.724,47.71]
[1673446315465,20.0,15.737,15.725,20.0]
[1673446315875,43.99564137,15.738,15.726,1.92]
[1673446316087,43.99564137,15.738,15.727,20.0]
[1673446316302,18.2,15.74,15.728,1.92]
[1673446316503,18.2,15.74,15.728,49.61]
[1673446318809,18.2,15.74,15.728,1.92]
[1673446319015,13.73,15.74,15.729,47.69]
[1673446319231,13.73,15.74,15.73,1.92]
[1673446319460,13.73,15.74,15.73,21.92]
[1673446320295,13.73,15.74,15.731,47.69]
[1673446320490,47.63,15.749,15.732,20.96]
[1673446320707,20.0,15.748,15.733,0.96]
[1673446320930,20.0,15.748,15.734,0.96]
[1673446321245,20.0,15.748,15.735,0.96]
[1673446321459,68.77,15.75,15.736,0.96]
[1673446321460,20.0,15.749,15.736,0.96]
[1673446321665,20.0,15.749,15.737,0.96]
[1673446321858,20.0,15.749,15.738,0.96]
[1673446322714,67.63,15.749,15.738,0.96]
[1673446323028,68.77,15.75,15.735,47.67]
[1673446323226,67.63,15.749,15.736,20.0]
[1673446323677,38.75512149,15.748,15.734,47.68]
[1673446323978,13.78,15.74,15.732,114.4574]
[1673446324395,13.78,15.74,15.733,20.0]
[1673446325024,13.78,15.74,15.734,1.92]
[1673446325227,13.78,15.74,15.732,114.4574]
[1673446326697,13.78,15.74,15.733,1.92]
[1673446326913,13.78,15.74,15.733,49.6]
[1673446327124,13.78,15.74,15.733,47.68]
[1673446327646,13.78,15.74,15.732,114.4574]
[1673446327855,13.77,15.74,15.733,20.0]
[1673446328170,13.77,15.74,15.733,47.68]
[1673446328385,13.77,15.74,15.734,1.92]
[1673446329450,13.77,15.74,15.734,0.96]
[1673446329759,13.77,15.74,15.733,47.68]
[1673446329952,13.77,15.74,15.732,114.4574]
[1673446330163,13.77,15.74,15.733,1.92]
[1673446330806,13.77,15.74,15.732,114.4574]
[1673446331554,13.77,15.74,15.729,47.69]
[1673446332169,20.0,15.738,15.72,113.5282]
[1673446332384,20.0,15.738,15.721,20.0]
[1673446332385,13.73,15.73,15.721,20.0]
[1673446332804,13.73,15.73,15.722,47.71]
[1673446333013,13.73,15.73,15.723,20.0]
[1673446333526,13.73,15.73,15.721,47.72]
[1673446333731,68.79,15.73,15.717,47.73]
[1673446334060,0.96,15.729,15.717,47.73]
[1673446334390,0.96,15.728,15.717,47.73]
[1673446336057,0.96,15.727,15.713,162.4083]
[1673446336271,13.77,15.72,15.713,162.4083]
[1673446336472,13.77,15.72,15.713,47.74]
[1673446336685,13.77,15.72,15.714,40.0]
[1673446337000,68.95,15.73,15.714,40.0]
[1673446337215,68.95,15.73,15.716,20.0]
[1673446337412,68.95,15.73,15.717,1.92]
[1673446337622,68.95,15.73,15.717,49.65]
[1673446338153,20.0,15.729,15.716,47.73]
[1673446338910,68.95,15.73,15.716,67.73]
[1673446339831,91.96,15.73,15.717,1.92]
[1673446340043,20.0,15.729,15.717,1.92]
[1673446341825,20.0,15.729,15.716,47.73]
[1673446342993,20.0,15.729,15.717,1.92]
[1673446343528,91.96,15.73,15.717,1.92]
[1673446344038,20.0,15.729,15.717,1.92]
[1673446344462,20.0,15.729,15.716,47.73]
[1673446344664,18.46,15.73,15.716,47.73]
[1673446344877,18.46,15.73,15.717,1.92]
[1673446345290,18.46,15.73,15.718,47.73]
[1673446345500,18.46,15.73,15.719,1.92]
[1673446345713,18.46,15.73,15.719,21.92]
[1673446346155,18.46,15.73,15.721,20.0]
[1673446346473,18.46,15.73,15.722,1.92]
[1673446346673,18.46,15.73,15.722,49.63]
[1673446347413,18.46,15.73,15.722,1.92]
[1673446347603,18.46,15.73,15.723,47.71]
[1673446347935,20.0,15.735,15.724,1.92]
[1673446348369,91.89,15.74,15.724,1.92]
[1673446348370,18.36,15.74,15.725,47.7]
[1673446348552,18.36,15.74,15.726,21.92]
[1673446348988,18.36,15.74,15.727,67.7]
[1673446349185,18.36,15.74,15.728,1.92]
[1673446349605,18.36,15.74,15.73,20.0]
[1673446349811,18.36,15.74,15.731,1.92]
[1673446350021,18.36,15.74,15.731,49.61]
[1673446352554,43.94991631,15.746,15.732,20.0]
[1673446352866,20.0,15.748,15.733,1.92]
[1673446353070,20.0,15.748,15.734,20.0]
[1673446353277,20.0,15.748,15.735,1.92]
[1673446353497,20.0,15.748,15.735,49.59]
[1673446353708,20.0,15.748,15.735,1.92]
[1673446354662,38.75512149,15.748,15.735,1.92]
[1673446354875,18.38,15.74,15.729,115.4235]
[1673446356348,18.38,15.74,15.727,47.7]
[1673446356349,1.92,15.739,15.727,47.7]
[1673446356537,21.92,15.739,15.724,155.8828]
[1673446356745,86.41512149,15.738,15.724,47.71]
[1673446356956,18.22,15.73,15.721,47.72]
[1673446357168,18.22,15.73,15.72,47.72]
[1673446357383,18.22,15.73,15.719,47.72]
[1673446357821,18.22,15.73,15.72,20.0]
[1673446358341,18.22,15.73,15.721,49.64]
[1673446359901,18.22,15.73,15.721,1.92]
[1673446360326,18.22,15.73,15.718,47.73]
[1673446362113,18.22,15.73,15.719,1.92]
[1673446362750,18.22,15.73,15.719,0.96]
[1673446362947,18.22,15.73,15.718,47.73]
[1673446363404,18.22,15.73,15.719,21.92]
[1673446363830,18.22,15.73,15.72,47.72]
[1673446364035,18.22,15.73,15.717,108.1728]
[1673446364360,18.22,15.73,15.718,47.73]
[1673446365096,20.0,15.729,15.718,47.73]
[1673446365308,20.0,15.729,15.717,108.1728]
[1673446365501,20.0,15.729,15.715,47.73]
[1673446365719,20.0,15.729,15.716,20.0]
[1673446365720,1.92,15.728,15.716,20.0]
[1673446366568,1.92,15.728,15.714,47.74]
[1673446366783,1.92,15.728,15.708,20.0]
[1673446366784,18.39,15.72,15.708,67.76]
[1673446369803,1.92,15.719,15.708,47.76]
[1673446370016,18.39,15.72,15.708,47.76]
[1673446370226,18.39,15.72,15.707,47.76]
[1673446370896,18.39,15.72,15.707,67.76]
[1673446372664,18.39,15.72,15.708,21.92]
[1673446373074,18.39,15.72,15.709,47.75]
[1673446373286,66.47512149,15.719,15.704,47.77]
[1673446373487,91.88,15.72,15.705,20.0]
[1673446373906,91.88,15.72,15.706,47.76]
[1673446373907,20.0,15.719,15.706,47.76]
[1673446374117,20.96,15.719,15.706,47.76]
[1673446374343,0.96,15.718,15.706,47.76]
[1673446374554,0.96,15.717,15.706,47.76]
[1673446374869,20.0,15.719,15.706,47.76]
[1673446375075,1.92,15.718,15.706,47.76]
[1673446376002,1.92,15.718,15.705,20.0]
[1673446376214,1.92,15.718,15.701,20.0]
[1673446376419,1.92,15.718,15.701,47.78]
[1673446376635,18.39,15.71,15.7,47.78]
[1673446376845,18.39,15.71,15.699,47.78]
[1673446377487,18.39,15.71,15.7,20.0]
[1673446377900,18.39,15.71,15.701,47.78]
[1673446378107,88.48570447,15.718,15.701,47.78]
[1673446378108,67.73,15.718,15.701,47.78]
[1673446378331,20.0,15.717,15.701,47.78]
[1673446378745,38.75512149,15.717,15.701,47.78]
[1673446378968,18.39,15.71,15.701,47.78]
[1673446379172,18.39,15.71,15.699,47.78]
[1673446379496,20.0,15.717,15.699,47.78]
[1673446379689,20.0,15.717,15.7,20.0]
[1673446379900,18.39,15.71,15.7,20.0]
[1673446380111,18.39,15.71,15.701,47.78]
[1673446380328,18.39,15.71,15.702,1.92]
[1673446380855,18.39,15.71,15.703,47.77]
[1673446381178,18.39,15.71,15.699,47.78]
[1673446382323,18.39,15.71,15.7,1.92]
[1673446382528,18.39,15.71,15.7,21.92]
[1673446382737,18.39,15.71,15.701,47.78]
[1673446383066,18.39,15.71,15.702,1.92]
[1673446383258,18.39,15.71,15.702,21.92]
[1673446383466,18.39,15.71,15.703,47.77]
[1673446383810,20.0,15.716,15.704,1.92]
[1673446384207,20.0,15.716,15.705,47.76]
[1673446384416,20.0,15.716,15.704,47.77]
[1673446384650,20.0,15.716,15.701,47.78]
[1673446384836,20.0,15.716,15.702,1.92]
[1673446385267,20.0,15.716,15.703,47.77]
[1673446385465,0.96,15.715,15.703,47.77]
[1673446385924,18.39,15.71,15.701,47.78]
[1673446386118,18.39,15.71,15.7,47.78]
[1673446386414,1.92,15.709,15.698,47.79]
[1673446386619,69.67,15.709,15.694,47.8]
[1673446386851,38.75512149,15.708,15.69,112.2872]
[1673446387043,21.92,15.707,15.691,47.81]
[1673446387256,20.0,15.706,15.691,47.81]
[1673446387458,18.39,15.7,15.691,47.81]
[1673446390522,18.39,15.7,15.689,47.81]
[1673446394092,91.9,15.7,15.687,47.82]
[1673446394291,1.92,15.699,15.687,47.82]
[1673446394500,21.92,15.699,15.685,47.83]
[1673446394722,20.0,15.698,15.685,47.83]
[1673446395043,20.0,15.697,15.685,47.83]
[1673446395673,1.92,15.696,15.685,47.83]
[1673446396097,21.92,15.696,15.685,47.83]
[1673446397031,1.92,15.696,15.685,47.83]
[1673446397890,21.92,15.696,15.685,47.83]
[1673446398101,40.67512149,15.696,15.684,5.6758014]
[1673446398320,18.39,15.69,15.685,47.83]
[1673446398510,40.67512149,15.696,15.685,47.83]
[1673446398718,40.67512149,15.696,15.684,5.6758014]
[1673446398932,18.39,15.69,15.685,47.83]
[1673446399143,40.67512149,15.696,15.684,5.6758014]
[1673446399371,18.38,15.69,15.684,5.6758014]
[1673446400736,18.38,15.69,15.685,47.83]
[1673446401050,20.0,15.696,15.685,47.83]
[1673446401379,20.0,15.696,15.684,5.6758014]
[1673446401580,18.39,15.69,15.685,47.83]
[1673446401771,38.75512149,15.696,15.685,47.83]
[1673446402104,20.0,15.697,15.685,47.83]
[1673446403138,111.92,15.7,15.686,20.0]
[1673446403139,91.92,15.7,15.686,20.0]
[1673446403353,91.92,15.7,15.687,1.92]
[1673446403560,18.36,15.7,15.687,49.74]
[1673446403982,92.12,15.7,15.687,47.82]
[1673446404398,20.0,15.699,15.687,47.82]
[1673446404945,1.92,15.698,15.687,47.82]
[1673446405144,1.92,15.698,15.686,47.82]
[1673446405353,1.92,15.698,15.685,47.83]
[1673446405783,18.75512149,15.697,15.685,47.83]
[1673446406093,20.0,15.695,15.685,47.83]
[1673446406300,20.0,15.696,15.684,5.6758014]
[1673446406497,18.39,15.69,15.685,47.83]
[1673446406705,38.75512149,15.696,15.685,47.83]
[1673446406920,1.92,15.695,15.685,47.83]
[1673446407980,92.0,15.7,15.685,47.83]
[1673446408196,20.0,15.698,15.685,47.83]
[1673446408398,20.0,15.697,15.685,47.83]
[1673446408624,20.0,15.696,15.684,5.6758014]
[1673446408826,20.0,15.698,15.685,47.83]
[1673446409247,18.75512149,15.697,15.685,47.83]
[1673446409458,20.0,15.696,15.685,47.83]
[1673446409885,38.75512149,15.696,15.685,47.83]
[1673446410325,1.92,15.695,15.685,47.83]
[1673446410626,20.67512149,15.695,15.685,47.83]
[1673446410840,273.8,15.694,15.684,5.6758014]
[1673446411036,91.82,15.69,15.684,5.6758014]
[1673446411242,20.96,15.689,15.684,5.6758014]
[1673446411452,20.0,15.688,15.684,5.6758014]
[1673446411664,20.0,15.687,15.684,5.6758014]
[1673446411874,1.92,15.686,15.684,5.6758014]
[1673446412085,20.0,15.687,15.684,5.6758014]
[1673446412617,66.30847006,15.686,15.684,5.6758014]
[1673446413139,20.0,15.688,15.684,5.6758014]
[1673446413360,18.75512149,15.687,15.684,5.6758014]
[1673446413577,20.0,15.685,15.684,5.6758014]
[1673446413768,21.92,15.685,15.673,47.86]
[1673446413978,21.92,15.685,15.672,151.8271701]
[1673446413979,18.39,15.68,15.672,151.8271701]
[1673446417672,91.97,15.68,15.672,151.8271701]
[1673446418078,1.92,15.679,15.672,151.8271701]
[1673446418410,18.38,15.68,15.672,151.8271701]
[1673446418607,27.77,15.68,15.672,151.8271701]
[1673446419241,195.25201523,15.68,15.672,151.8271701]
[1673446419445,195.15201523,15.68,15.672,151.8271701]
[1673446419654,27.73,15.68,15.672,151.8271701]
[1673446419880,27.73,15.68,15.673,47.86]
[1673446420080,27.73,15.68,15.672,151.8271701]
[1673446420823,20.0,15.686,15.673,49.78]
[1673446421036,27.77,15.68,15.673,47.86]
[1673446421750,157.59512149,15.68,15.672,151.8271701]
[1673446421965,47.86,15.673,15.672,0.0071701]
[1673446422180,0.83305309,15.678,15.66,5.6758014]
[1673446422390,138.75,15.67,15.66,5.6758014]
[1673446422601,20.0,15.669,15.66,5.6758014]
[1673446422815,177.39166007,15.669,15.66,5.6758014]
[1673446423026,220.61218678,15.668,15.66,5.6758014]
[1673446423239,20.0,15.667,15.66,4.6758014]
[1673446423451,1.92,15.666,15.66,4.6758014]
[1673446423752,0.67067679,15.665,15.66,4.6758014]
[1673446423960,21.92,15.664,15.66,4.6758014]
[1673446424174,136.28957781,15.664,15.66,4.6758014]
[1673446424417,100.60683731,15.663,15.66,4.6758014]
[1673446424713,20.0,15.661,15.652,74.3473349]
[1673446424928,159.95,15.66,15.652,74.3473349]
[1673446425139,0.96,15.659,15.652,74.3473349]
[1673446425336,152.29129363,15.659,15.652,74.3473349]
[1673446425544,126.15224253,15.659,15.652,74.3473349]
[1673446425867,27.83,15.66,15.652,74.3473349]
[1673446426182,27.83,15.66,15.656,20.0]
[1673446426409,139.14,15.67,15.656,20.0]
[1673446426707,139.14,15.67,15.656,67.91]
[1673446426921,27.82,15.67,15.656,67.91]
[1673446427336,20.0,15.679,15.657,1.92]
[1673446427549,139.11,15.68,15.657,1.92]
[1673446427550,138.9,15.68,15.657,1.92]
[1673446427759,18.75512149,15.679,15.658,47.91]
[1673446427973,139.02,15.68,15.659,21.92]
[1673446428169,20.0,15.678,15.659,21.92]
[1673446428375,20.0,15.678,15.66,47.9]
[1673446428592,27.78,15.67,15.66,47.9]
[1673446429117,18.75512149,15.678,15.661,21.92]
[1673446429329,242.38889246,15.68,15.661,21.92]
[1673446429543,18.75512149,15.679,15.662,47.9]
[1673446429740,139.02,15.68,15.663,1.92]
[1673446429950,38.75512149,15.679,15.663,1.92]
[1673446430177,38.75512149,15.679,15.664,47.89]
[1673446431135,86.59512149,15.679,15.664,47.89]
[1673446431670,38.75512149,15.679,15.664,47.89]
[1673446431994,139.02,15.68,15.665,1.92]
[1673446432205,20.0,15.679,15.665,1.92]
[1673446432418,139.02,15.68,15.666,47.88]
[1673446432605,139.02,15.68,15.667,1.92]
[1673446432816,27.9,15.68,15.667,1.92]
[1673446433026,27.9,15.68,15.668,47.88]
[1673446433361,27.9,15.68,15.669,20.0]
[1673446433896,27.9,15.68,15.67,47.87]
[1673446434088,18.75512149,15.679,15.663,47.89]
[1673446434295,27.61,15.68,15.665,20.0]
[1673446434826,27.61,15.68,15.666,47.88]
[1673446435033,138.73,15.68,15.666,47.88]
[1673446435455,138.73,15.68,15.667,20.0]
[1673446435668,27.61,15.68,15.667,20.0]
[1673446435870,27.61,15.68,15.668,47.88]
[1673446436723,27.61,15.68,15.666,47.88]
[1673446437765,138.45,15.68,15.666,47.88]
[1673446437976,20.0,15.678,15.662,47.9]
[1673446438304,27.77,15.67,15.66,47.9]
[1673446438519,27.77,15.67,15.658,47.91]
[1673446438705,27.77,15.67,15.659,20.0]
[1673446439137,27.45112,15.67,15.66,47.9]
[1673446439338,27.45112,15.67,15.661,1.92]
[1673446439543,27.45112,15.67,15.661,21.92]
[1673446439754,27.45112,15.67,15.662,47.9]
[1673446439963,20.0,15.677,15.663,21.92]
[1673446440389,38.75512149,15.678,15.663,21.92]
[1673446440604,20.0,15.677,15.662,47.9]
[1673446441146,20.0,15.677,15.66,47.9]
[1673446441351,20.0,15.678,15.661,1.92]
[1673446441661,138.85,15.67,15.66,47.9]
[1673446441870,139.07,15.67,15.658,47.91]
[1673446442287,139.07,15.67,15.657,47.91]
[1673446442711,139.07,15.67,15.65,20.0]
[1673446442712,139.07,15.67,15.655,47.92]
[1673446442919,27.77,15.66,15.653,47.92]
[1673446443766,27.77,15.66,15.65,47.93]
[1673446443973,139.07,15.66,15.649,111.8303]
[1673446444195,157.82512149,15.66,15.649,111.8303]
[1673446444397,34.33092149,15.66,15.649,111.8303]
[1673446444608,51.8283818,15.663,15.653,20.0]
[1673446444925,20.0,15.681,15.654,20.0]
[1673446445121,27.5,15.67,15.655,20.0]
[1673446445332,27.5,15.67,15.655,67.92]
[1673446445751,27.5,15.67,15.656,21.92]
[1673446446174,27.5,15.67,15.657,47.91]
[1673446446383,27.5,15.67,15.658,1.92]
[1673446446714,27.5,15.67,15.658,21.92]
[1673446446906,27.5,15.67,15.659,47.91]
[1673446447116,27.5,15.67,15.66,1.92]
[1673446447321,27.5,15.67,15.659,47.91]
[1673446447554,18.75512149,15.669,15.654,67.92]
[1673446447868,38.75512149,15.669,15.654,47.92]
[1673446448062,86.62512149,15.669,15.654,47.92]
[1673446448274,18.75512149,15.668,15.653,47.92]
[1673446448915,21.92,15.667,15.653,47.92]
[1673446449110,27.75,15.66,15.653,47.92]
[1673446450377,6.11445,15.667,15.653,47.92]
[1673446450596,6.11445,15.667,15.654,20.0]
[1673446450799,27.86,15.67,15.654,20.0]
[1673446451009,27.86,15.67,15.655,67.92]
[1673446451339,27.86,15.67,15.656,21.92]
[1673446451750,27.86,15.67,15.657,47.91]
[1673446451945,27.86,15.67,15.658,21.92]
[1673446452380,67.84,15.679,15.659,47.91]
[1673446452574,20.0,15.678,15.66,21.92]
[1673446452994,20.0,15.678,15.661,47.9]
[1673446453223,18.75512149,15.677,15.662,1.92]
[1673446453441,66.60512149,15.677,15.662,1.92]
[1673446453667,47.85,15.677,15.663,47.89]
[1673446453983,27.92,15.68,15.664,21.92]
[1673446454194,27.92,15.68,15.665,20.0]
[1673446454378,27.92,15.68,15.666,1.92]
[1673446454925,27.92,15.68,15.667,47.88]
[1673446455243,186.97,15.69,15.668,1.92]
[1673446455652,193.08445,15.69,15.669,47.87]
[1673446455866,6.11445,15.689,15.67,21.92]
[1673446456286,53.92445,15.689,15.671,47.87]
[1673446456499,6.11445,15.689,15.672,21.92]
[1673446456710,27.86,15.69,15.673,20.0]
[1673446456901,27.86,15.69,15.674,1.92]
[1673446457118,47.8,15.695,15.674,21.92]
[1673446457455,47.78,15.699,15.675,47.86]
[1673446457639,27.92,15.7,15.68,19.86]
[1673446457856,27.92,15.7,15.682,20.0]
[1673446458067,27.92,15.7,15.683,21.92]
[1673446458292,27.92,15.7,15.684,20.0]
[1673446458710,27.92,15.7,15.685,69.75]
[1673446458906,47.78,15.699,15.672,129.4661]
[1673446459113,27.82,15.69,15.674,21.92]
[1673446459657,27.82,15.69,15.675,47.86]
[1673446459856,27.82,15.69,15.676,21.92]
[1673446460277,27.82,15.69,15.677,47.85]
[1673446460487,27.82,15.69,15.678,1.92]
[1673446460707,27.82,15.69,15.678,21.92]
[1673446460899,27.82,15.69,15.679,47.84]
[1673446461110,27.82,15.69,15.68,1.92]
[1673446461550,47.79,15.697,15.68,1.92]
[1673446461756,18.75512149,15.696,15.682,20.0]
[1673446461970,18.75512149,15.696,15.683,1.92]
[1673446462173,18.75512149,15.696,15.683,49.75]
[1673446463549,20.0,15.698,15.683,49.75]
[1673446463760,18.75512149,15.697,15.683,49.75]
[1673446463970,18.75512149,15.697,15.683,47.83]
[1673446464280,47.78,15.699,15.684,20.0]
[1673446464495,27.9,15.7,15.684,20.0]
[1673446464821,27.9,15.7,15.686,20.0]
[1673446465235,27.9,15.7,15.687,49.74]
[1673446465541,27.9,15.7,15.659,101.1975687]
[1673446465542,275.53512149,15.699,15.659,101.1975687]
[1673446465736,275.53512149,15.699,15.658,20.0]
[1673446465737,27.75,15.68,15.666,131.128]
[1673446466161,27.75,15.68,15.668,20.0]
[1673446466570,27.75,15.68,15.671,47.87]
[1673446466783,139.03,15.68,15.666,131.128]
[1673446467003,139.02,15.68,15.666,20.0]
[1673446467212,20.67512149,15.679,15.666,20.0]
[1673446467424,1.92,15.679,15.666,20.0]
[1673446467632,6.11445,15.678,15.659,47.91]
[1673446467836,25.84,15.67,15.658,47.91]
[1673446468056,25.84,15.67,15.657,165.0029]
[1673446468378,18.75512149,15.669,15.657,165.0029]
[1673446468627,25.84,15.67,15.654,47.92]
[1673446468834,129.64,15.67,15.655,20.0]
[1673446469148,129.53,15.67,15.655,20.0]
[1673446469342,25.82,15.67,15.656,47.91]
[1673446469869,25.82,15.67,15.657,20.0]
[1673446470291,25.82,15.67,15.658,47.91]
[1673446470931,25.82,15.67,15.659,20.0]
[1673446471346,25.82,15.67,15.656,47.91]
[1673446471555,18.75512149,15.669,15.656,47.91]
[1673446471768,25.82,15.67,15.656,47.91]
[1673446472298,25.82,15.67,15.657,20.0]
[1673446472609,25.82,15.67,15.656,47.91]
[1673446472830,25.82,15.67,15.657,1.92]
[1673446473354,25.82,15.67,15.658,47.91]
[1673446473556,25.82,15.67,15.659,1.92]
[1673446474820,25.82,15.67,15.658,47.91]
[1673446475254,18.75512149,15.669,15.654,47.92]
[1673446475437,18.75512149,15.669,15.655,21.92]
[1673446475647,18.75512149,15.669,15.656,20.0]
[1673446475857,18.75512149,15.669,15.656,67.91]
[1673446476104,18.75512149,15.669,15.655,20.0]
[1673446476605,25.82,15.67,15.656,20.0]
[1673446476807,25.82,15.67,15.656,67.91]
[1673446477452,25.82,15.67,15.657,1.92]
[1673446477764,18.75512149,15.672,15.657,1.92]
[1673446477951,25.72,15.67,15.657,1.92]
[1673446478819,25.72,15.67,15.656,67.91]
[1673446479133,25.72,15.67,15.656,20.0]
[1673446479656,72.78726298,15.67,15.656,20.0]
[1673446479872,120.65726298,15.67,15.656,20.0]
[1673446480188,72.78726298,15.67,15.656,20.0]
[1673446481023,72.78726298,15.67,15.656,67.91]
[1673446481239,25.72,15.67,15.657,1.92]
[1673446481436,25.72,15.67,15.657,49.83]
[1673446481641,25.72,15.67,15.658,20.0]
[1673446481869,25.72,15.67,15.659,1.92]
[1673446482060,25.72,15.67,15.659,49.83]
[1673446482273,25.72,15.67,15.659,47.91]
[1673446482475,25.72,15.67,15.66,20.0]
[1673446483222,44.47512149,15.67,15.66,20.0]
[1673446483866,44.47512149,15.67,15.659,47.91]
[1673446484175,44.47512149,15.67,15.657,47.91]
[1673446484574,44.47512149,15.67,15.656,67.91]
[1673446484787,25.72,15.67,15.656,67.91]
[1673446485015,18.75512149,15.669,15.656,67.91]
[1673446485418,25.72,15.67,15.656,67.91]
[1673446485628,129.62,15.67,15.656,20.0]
[1673446486382,21.92,15.669,15.655,47.92]
[1673446486590,20.0,15.668,15.653,47.92]
[1673446486785,25.95,15.66,15.653,47.92]
[1673446486994,25.95,15.66,15.65,47.93]
[1673446487205,25.95,15.66,15.646,47.94]
[1673446487626,25.95,15.66,15.647,20.0]
[1673446488046,44.70512149,15.66,15.647,20.0]
[1673446488479,44.70512149,15.66,15.653,20.0]
[1673446488693,25.95,15.66,15.653,20.0]
[1673446490353,25.95,15.66,15.656,17.82668754]
[1673446490564,94.8919556,15.667,15.656,17.82668754]
[1673446490984,47.0119556,15.666,15.656,17.82668754]
[1673446492691,18.75512149,15.665,15.656,17.82668754]
[1673446493121,113.60173439,15.665,15.656,17.82668754]
[1673446493332,65.71173439,15.665,15.656,17.82668754]
[1673446493541,18.75512149,15.664,15.656,17.82668754]
[1673446493952,20.0,15.663,15.652,74.3473349]
[1673446494177,25.95,15.66,15.652,74.3473349]
[1673446494702,18.75512149,15.659,15.652,74.3473349]
[1673446494898,25.78,15.66,15.652,74.3473349]
[1673446496365,25.78,15.66,15.653,20.0]
[1673446496578,47.88,15.667,15.654,1.92]
[1673446496782,47.87,15.669,15.655,20.0]
[1673446496990,66.9566129,15.668,15.655,20.0]
[1673446498778,20.0,15.668,15.655,20.0]
[1673446499217,18.75512149,15.667,15.655,20.0]
[1673446499632,20.0,15.668,15.655,20.0]
[1673446500041,38.75512149,15.668,15.655,20.0]
[1673446501612,26.1,15.67,15.656,47.91]
[1673446502143,26.1,15.67,15.657,21.92]
[1673446502563,26.1,15.67,15.658,47.91]
[1673446502890,26.1,15.67,15.659,1.92]
[1673446503101,26.1,15.67,15.659,21.92]
[1673446503415,26.1,15.67,15.661,20.0]
[1673446504035,26.1,15.67,15.662,47.9]
[1673446505109,25.72,15.67,15.662,47.9]
[1673446505317,25.72,15.67,15.661,20.0]
[1673446506151,25.72,15.67,15.662,47.9]
[1673446506768,25.72,15.67,15.663,20.96]
[1673446506984,66.60512149,15.677,15.663,21.92]
[1673446507189,18.75512149,15.677,15.663,21.92]
[1673446507405,18.75512149,15.677,15.664,47.89]